[Event "Early-Titled-Tuesday-Blitz-May-07-2024"]
[Site "Chess.com"]
[Date "2024.05.07"]
[Round "2"]
[White "kidagent"]
[Black "LikeWater"]
[Result "1/2-1/2"]
[WhiteElo "2374"]
[BlackElo "2686"]
[TimeControl "180+1"]
[EndTime "8:21:07 PDT"]
[Termination "Game drawn - insufficient material"]

1. e4 {[%clk 0:03:00.9]} 1... e5 {[%clk 0:02:56]} 2. Nf3 {[%clk 0:03:00.5]} 2...
Nc6 {[%clk 0:02:55.6]} 3. Bb5 {[%clk 0:03:01.1]} 3... a6 {[%clk 0:02:55]} 4. Ba4
{[%clk 0:03:00.8]} 4... Nf6 {[%clk 0:02:53.9]} 5. O-O {[%clk 0:03:00.8]} 5...
Be7 {[%clk 0:02:51.1]} 6. Re1 {[%clk 0:03:00.8]} 6... b5 {[%clk 0:02:50.3]} 7.
Bb3 {[%clk 0:03:00.6]} 7... d6 {[%clk 0:02:49.6]} 8. c3 {[%clk 0:02:59.3]} 8...
O-O {[%clk 0:02:49.2]} 9. h3 {[%clk 0:02:55.7]} 9... Bd7 {[%clk 0:02:48.5]} 10.
d4 {[%clk 0:02:52.8]} 10... a5 {[%clk 0:02:48.9]} 11. a4 {[%clk 0:02:49.5]}
11... bxa4 {[%clk 0:02:41.7]} 12. Bxa4 {[%clk 0:02:47.8]} 12... exd4 {[%clk
0:02:41.9]} 13. cxd4 {[%clk 0:02:47]} 13... Nb4 {[%clk 0:02:41.9]} 14. Nc3
{[%clk 0:02:42]} 14... Bxa4 {[%clk 0:02:40.6]} 15. Rxa4 {[%clk 0:02:40.9]} 15...
Nd7 {[%clk 0:02:41.5]} 16. Be3 {[%clk 0:02:19.7]} 16... Nb6 {[%clk 0:02:23]} 17.
Ra1 {[%clk 0:02:19.1]} 17... Nc4 {[%clk 0:02:07]} 18. Bc1 {[%clk 0:02:17.9]}
18... Bf6 {[%clk 0:01:40.7]} 19. Qe2 {[%clk 0:02:11.7]} 19... Nb6 {[%clk
0:01:34.5]} 20. e5 {[%clk 0:02:10]} 20... dxe5 {[%clk 0:01:33.8]} 21. dxe5
{[%clk 0:02:09.9]} 21... Be7 {[%clk 0:01:32.4]} 22. Rd1 {[%clk 0:01:54]} 22...
Qc8 {[%clk 0:01:31.5]} 23. Be3 {[%clk 0:01:50]} 23... Qf5 {[%clk 0:01:24.2]} 24.
Nb5 {[%clk 0:01:36.9]} 24... N6d5 {[%clk 0:01:17]} 25. Rac1 {[%clk 0:01:21.3]}
25... c6 {[%clk 0:00:22.2]} 26. Nbd4 {[%clk 0:01:16.8]} 26... Qe4 {[%clk
0:00:21.4]} 27. Nxc6 {[%clk 0:01:04.9]} 27... Nxc6 {[%clk 0:00:20.1]} 28. Rxc6
{[%clk 0:01:04.8]} 28... Nf4 {[%clk 0:00:20.5]} 29. Qc2 {[%clk 0:01:01.5]} 29...
Nxh3+ {[%clk 0:00:14.9]} 30. Kh2 {[%clk 0:00:57]} 30... Qg4 {[%clk 0:00:12.2]}
31. gxh3 {[%clk 0:00:40.9]} 31... Qxf3 {[%clk 0:00:12.3]} 32. Rg1 {[%clk
0:00:40.6]} 32... Kh8 {[%clk 0:00:06.1]} 33. Rg3 {[%clk 0:00:36.8]} 33... Qh5
{[%clk 0:00:06.4]} 34. Bd4 {[%clk 0:00:30.6]} 34... Bh4 {[%clk 0:00:06.2]} 35.
Rg4 {[%clk 0:00:27.8]} 35... Rad8 {[%clk 0:00:04.7]} 36. Bc3 {[%clk 0:00:26]}
36... Rg8 {[%clk 0:00:02.9]} 37. Qe2 {[%clk 0:00:21.4]} 37... Be7 {[%clk
0:00:02.7]} 38. Rcc4 {[%clk 0:00:18.6]} 38... Qf5 {[%clk 0:00:02.9]} 39. Rce4
{[%clk 0:00:18.3]} 39... Qe6 {[%clk 0:00:03.4]} 40. Rd4 {[%clk 0:00:14.2]} 40...
Rc8 {[%clk 0:00:03.5]} 41. Rd3 {[%clk 0:00:12.6]} 41... Bc5 {[%clk 0:00:03.7]}
42. Rdg3 {[%clk 0:00:12.4]} 42... g6 {[%clk 0:00:03.4]} 43. f4 {[%clk
0:00:12.3]} 43... Bb4 {[%clk 0:00:02.7]} 44. Qe4 {[%clk 0:00:10.3]} 44... Bxc3
{[%clk 0:00:02.6]} 45. Rxc3 {[%clk 0:00:10.8]} 45... Rxc3 {[%clk 0:00:02.5]} 46.
bxc3 {[%clk 0:00:11.5]} 46... Rd8 {[%clk 0:00:03.1]} 47. Rg2 {[%clk 0:00:11.3]}
47... Qb3 {[%clk 0:00:02.9]} 48. Qc2 {[%clk 0:00:10.8]} 48... Qxc2 {[%clk
0:00:03.1]} 49. Rxc2 {[%clk 0:00:11.4]} 49... a4 {[%clk 0:00:03.5]} 50. Ra2
{[%clk 0:00:11.1]} 50... Ra8 {[%clk 0:00:04.2]} 51. Ra3 {[%clk 0:00:11.1]} 51...
Kg7 {[%clk 0:00:04.2]} 52. Kg3 {[%clk 0:00:11.5]} 52... f6 {[%clk 0:00:05]} 53.
Kf3 {[%clk 0:00:12.1]} 53... Kf7 {[%clk 0:00:05.3]} 54. Ke4 {[%clk 0:00:11.8]}
54... Ke6 {[%clk 0:00:05.5]} 55. c4 {[%clk 0:00:11.8]} 55... fxe5 {[%clk
0:00:05.8]} 56. fxe5 {[%clk 0:00:11.8]} 56... Ra5 {[%clk 0:00:06.5]} 57. Kd4
{[%clk 0:00:10.9]} 57... Rxe5 {[%clk 0:00:06.3]} 58. Rxa4 {[%clk 0:00:10.9]}
58... Re1 {[%clk 0:00:06.6]} 59. Ra6+ {[%clk 0:00:09.8]} 59... Kf5 {[%clk
0:00:07]} 60. Ra3 {[%clk 0:00:09.4]} 60... Rd1+ {[%clk 0:00:06]} 61. Kc5 {[%clk
0:00:08.7]} 61... g5 {[%clk 0:00:05.8]} 62. Kb5 {[%clk 0:00:08]} 62... h5 {[%clk
0:00:05.9]} 63. c5 {[%clk 0:00:08.3]} 63... g4 {[%clk 0:00:05.5]} 64. c6 {[%clk
0:00:07.9]} 64... Rc1 {[%clk 0:00:05.3]} 65. Kb6 {[%clk 0:00:07.4]} 65... h4
{[%clk 0:00:05.3]} 66. hxg4+ {[%clk 0:00:07.5]} 66... Kxg4 {[%clk 0:00:06.2]}
67. c7 {[%clk 0:00:07.6]} 67... h3 {[%clk 0:00:06.2]} 68. Rxh3 {[%clk
0:00:06.6]} 68... Kxh3 {[%clk 0:00:07.1]} 69. Kb7 {[%clk 0:00:06.5]} 69... Kg4
{[%clk 0:00:07.2]} 70. c8=Q+ {[%clk 0:00:06.2]} 70... Rxc8 {[%clk 0:00:08.1]}
71. Kxc8 {[%clk 0:00:06.5]} 1/2-1/2

[Event "Early-Titled-Tuesday-Blitz-May-07-2024"]
[Site "Chess.com"]
[Date "2024.05.07"]
[Round "2"]
[White "1mbl4"]
[Black "h4parah5"]
[Result "0-1"]
[WhiteElo "2635"]
[BlackElo "3018"]
[TimeControl "180+1"]
[EndTime "8:21:09 PDT"]
[Termination "h4parah5 won by resignation"]

1. d4 {[%clk 0:03:00.9]} 1... Nf6 {[%clk 0:02:59.5]} 2. Nc3 {[%clk 0:03:01.1]}
2... e6 {[%clk 0:02:59.3]} 3. Bf4 {[%clk 0:02:59.3]} 3... Bb4 {[%clk 0:02:58.8]}
4. e3 {[%clk 0:02:59.7]} 4... Nd5 {[%clk 0:02:58.3]} 5. Ne2 {[%clk 0:03:00.2]}
5... Nxf4 {[%clk 0:02:57.7]} 6. exf4 {[%clk 0:03:01.1]} 6... d5 {[%clk
0:02:56.2]} 7. a3 {[%clk 0:03:01.3]} 7... Be7 {[%clk 0:02:55.6]} 8. Ng1 {[%clk
0:03:01.2]} 8... c5 {[%clk 0:02:50.7]} 9. Nf3 {[%clk 0:03:01.4]} 9... Nc6 {[%clk
0:02:50]} 10. Bb5 {[%clk 0:03:01.3]} 10... O-O {[%clk 0:02:49.1]} 11. O-O {[%clk
0:02:41.6]} 11... Nxd4 {[%clk 0:02:37.2]} 12. Nxd4 {[%clk 0:02:42.5]} 12... cxd4
{[%clk 0:02:37.9]} 13. Qxd4 {[%clk 0:02:42]} 13... Qc7 {[%clk 0:02:38.3]} 14. f5
{[%clk 0:02:24.6]} 14... Bf6 {[%clk 0:02:33.4]} 15. Qd3 {[%clk 0:02:21]} 15...
a6 {[%clk 0:02:20.8]} 16. Ba4 {[%clk 0:02:18.6]} 16... Bxc3 {[%clk 0:02:20]} 17.
bxc3 {[%clk 0:02:19.5]} 17... exf5 {[%clk 0:02:09.7]} 18. Qxd5 {[%clk
0:02:07.2]} 18... Be6 {[%clk 0:02:03.3]} 19. Qf3 {[%clk 0:02:06.5]} 19... Rac8
{[%clk 0:01:55.8]} 20. Rfe1 {[%clk 0:01:47.6]} 20... b5 {[%clk 0:01:40.7]} 21.
Bb3 {[%clk 0:01:46.8]} 21... Bxb3 {[%clk 0:01:40.4]} 22. cxb3 {[%clk 0:01:47.1]}
22... Qxc3 {[%clk 0:01:41.1]} 23. Qxf5 {[%clk 0:01:45.3]} 23... Qxb3 {[%clk
0:01:40.2]} 24. g3 {[%clk 0:01:37.7]} 24... Qc2 {[%clk 0:01:33.3]} 25. Qd7
{[%clk 0:01:33.3]} 25... Qc6 {[%clk 0:01:30.3]} 26. Qd2 {[%clk 0:01:23.1]} 26...
Rfd8 {[%clk 0:01:25.2]} 27. Qa5 {[%clk 0:01:23.1]} 27... h6 {[%clk 0:01:22.4]}
28. a4 {[%clk 0:01:17.9]} 28... Rd5 {[%clk 0:01:16.5]} 29. axb5 {[%clk
0:01:11.6]} 29... axb5 {[%clk 0:01:17.4]} 30. Rab1 {[%clk 0:01:08.9]} 30... Rb8
{[%clk 0:01:13.2]} 31. Qa7 {[%clk 0:01:04.7]} 31... Ra8 {[%clk 0:00:51.8]} 32.
Qe7 {[%clk 0:01:02.7]} 32... Rf5 {[%clk 0:00:51.2]} 33. Re2 {[%clk 0:00:47.7]}
33... h5 {[%clk 0:00:47.4]} 34. h4 {[%clk 0:00:43.7]} 34... Qg6 {[%clk
0:00:42.9]} 35. Qe4 {[%clk 0:00:41.6]} 35... Rc8 {[%clk 0:00:39.5]} 36. Reb2
{[%clk 0:00:40]} 36... Rb8 {[%clk 0:00:34.6]} 37. Qd3 {[%clk 0:00:35.1]} 37...
Re5 {[%clk 0:00:26.7]} 38. Qxg6 {[%clk 0:00:31.3]} 38... fxg6 {[%clk 0:00:27.6]}
39. Kg2 {[%clk 0:00:30.7]} 39... Rb6 {[%clk 0:00:26.1]} 40. Rb4 {[%clk
0:00:30.6]} 40... Rf5 {[%clk 0:00:26]} 41. R1b2 {[%clk 0:00:30.5]} 41... Kf7
{[%clk 0:00:25.8]} 42. Re2 {[%clk 0:00:25.7]} 42... g5 {[%clk 0:00:22.3]} 43.
hxg5 {[%clk 0:00:25.1]} 43... Rxg5 {[%clk 0:00:23.2]} 44. Kh3 {[%clk 0:00:25.8]}
44... Rc5 {[%clk 0:00:22.4]} 45. Reb2 {[%clk 0:00:25.6]} 45... g5 {[%clk
0:00:21.1]} 46. f4 {[%clk 0:00:24.7]} 46... g4+ {[%clk 0:00:17.5]} 47. Kh4
{[%clk 0:00:24.7]} 47... Kg6 {[%clk 0:00:18.1]} 48. Re2 {[%clk 0:00:21.7]} 48...
Rc1 {[%clk 0:00:17.8]} 49. Rh2 {[%clk 0:00:13.9]} 49... Rc4 {[%clk 0:00:17.6]}
50. f5+ {[%clk 0:00:05]} 50... Kxf5 {[%clk 0:00:16.2]} 51. Rxc4 {[%clk
0:00:04.2]} 51... bxc4 {[%clk 0:00:16.4]} 52. Kxh5 {[%clk 0:00:04.9]} 52... c3
{[%clk 0:00:12.2]} 53. Rf2+ {[%clk 0:00:05.2]} 53... Ke4 {[%clk 0:00:12.6]} 54.
Kxg4 {[%clk 0:00:06.1]} 54... Rc6 {[%clk 0:00:12.4]} 55. Rc2 {[%clk 0:00:03.7]}
55... Kd3 {[%clk 0:00:11.5]} 56. Rc1 {[%clk 0:00:03]} 56... Kd2 {[%clk
0:00:11.8]} 57. Rxc3 {[%clk 0:00:03]} 57... Kxc3 {[%clk 0:00:11.6]} 58. Kf5
{[%clk 0:00:03.2]} 58... Kd4 {[%clk 0:00:11.2]} 59. g4 {[%clk 0:00:03.8]} 59...
Rc5+ {[%clk 0:00:10.9]} 60. Kf6 {[%clk 0:00:03.6]} 60... Ke4 {[%clk 0:00:10.8]}
61. g5 {[%clk 0:00:04.1]} 61... Rc6+ {[%clk 0:00:11.4]} 62. Kf7 {[%clk
0:00:01.6]} 62... Kf5 {[%clk 0:00:11.4]} 63. g6 {[%clk 0:00:02.5]} 63... Rc7+
{[%clk 0:00:11.5]} 64. Kf8 {[%clk 0:00:02.4]} 64... Kxg6 {[%clk 0:00:11.5]} 0-1

[Event "Early-Titled-Tuesday-Blitz-May-07-2024"]
[Site "Chess.com"]
[Date "2024.05.07"]
[Round "2"]
[White "NM_Antelacus"]
[Black "LimeInTheCoconut"]
[Result "0-1"]
[WhiteElo "2291"]
[BlackElo "2599"]
[TimeControl "180+1"]
[EndTime "8:21:18 PDT"]
[Termination "LimeInTheCoconut won by resignation"]

1. e4 {[%clk 0:03:00.9]} 1... e5 {[%clk 0:02:59.4]} 2. Nf3 {[%clk 0:03:00.7]}
2... Nc6 {[%clk 0:03:00.1]} 3. Bc4 {[%clk 0:03:00.4]} 3... Nf6 {[%clk
0:02:59.5]} 4. d3 {[%clk 0:03:00.7]} 4... Bc5 {[%clk 0:02:58.9]} 5. c3 {[%clk
0:03:01.1]} 5... d6 {[%clk 0:02:58.7]} 6. O-O {[%clk 0:03:00.5]} 6... h6 {[%clk
0:02:58.3]} 7. Nbd2 {[%clk 0:02:59.3]} 7... a5 {[%clk 0:02:52.3]} 8. Re1 {[%clk
0:02:57.7]} 8... O-O {[%clk 0:02:52.3]} 9. Nf1 {[%clk 0:02:46.8]} 9... Re8
{[%clk 0:02:51.7]} 10. Ng3 {[%clk 0:02:44.8]} 10... Ba7 {[%clk 0:02:46.5]} 11.
h3 {[%clk 0:02:41.2]} 11... Be6 {[%clk 0:02:39.5]} 12. Bxe6 {[%clk 0:02:39.2]}
12... Rxe6 {[%clk 0:02:34.1]} 13. Nf5 {[%clk 0:02:36.5]} 13... d5 {[%clk
0:02:31]} 14. Qc2 {[%clk 0:02:27.5]} 14... dxe4 {[%clk 0:02:00.4]} 15. dxe4
{[%clk 0:02:26]} 15... a4 {[%clk 0:01:37.9]} 16. Be3 {[%clk 0:02:21]} 16... Bxe3
{[%clk 0:01:36.5]} 17. Nxe3 {[%clk 0:02:19.5]} 17... g6 {[%clk 0:01:19]} 18.
Rad1 {[%clk 0:02:17.8]} 18... Rd6 {[%clk 0:01:10.5]} 19. Rxd6 {[%clk 0:02:06]}
19... Qxd6 {[%clk 0:01:11.4]} 20. Rd1 {[%clk 0:02:04.4]} 20... Qc5 {[%clk
0:01:10.5]} 21. Nd5 {[%clk 0:01:58.9]} 21... Nxd5 {[%clk 0:01:09.2]} 22. exd5
{[%clk 0:01:54]} 22... Ne7 {[%clk 0:00:16.4]} 23. Nxe5 {[%clk 0:01:38.7]} 23...
Rd8 {[%clk 0:00:14.8]} 24. Qe4 {[%clk 0:01:31.5]} 24... Rxd5 {[%clk 0:00:11.3]}
25. Rxd5 {[%clk 0:01:27.2]} 25... Qxd5 {[%clk 0:00:12.2]} 26. Qxd5 {[%clk
0:01:25.9]} 26... Nxd5 {[%clk 0:00:13.1]} 27. Nc4 {[%clk 0:01:22.6]} 27... b5
{[%clk 0:00:10.1]} 28. Na3 {[%clk 0:01:21.6]} 28... c6 {[%clk 0:00:09.8]} 29.
Nc2 {[%clk 0:01:21.6]} 29... Kf8 {[%clk 0:00:05.3]} 30. Nd4 {[%clk 0:01:20.1]}
30... Ne7 {[%clk 0:00:05.9]} 31. Kf1 {[%clk 0:01:19.4]} 31... Ke8 {[%clk
0:00:06.4]} 32. Ke2 {[%clk 0:01:19.8]} 32... Kd7 {[%clk 0:00:07.1]} 33. Kd3
{[%clk 0:01:20.2]} 33... Kd6 {[%clk 0:00:07.5]} 34. Ke4 {[%clk 0:01:13.9]} 34...
f5+ {[%clk 0:00:06.8]} 35. Kd3 {[%clk 0:01:13.7]} 35... Kd5 {[%clk 0:00:06]} 36.
b3 {[%clk 0:01:12.2]} 36... axb3 {[%clk 0:00:05.3]} 37. axb3 {[%clk 0:01:11.9]}
37... Nc8 {[%clk 0:00:05.8]} 38. c4+ {[%clk 0:01:11.7]} 38... bxc4+ {[%clk
0:00:06.2]} 39. bxc4+ {[%clk 0:01:11.9]} 39... Kd6 {[%clk 0:00:05.6]} 40. Nf3
{[%clk 0:01:08.5]} 40... Ne7 {[%clk 0:00:04.3]} 41. Kd4 {[%clk 0:01:05.9]} 41...
c5+ {[%clk 0:00:04.3]} 42. Kd3 {[%clk 0:01:05.7]} 42... g5 {[%clk 0:00:04.8]}
43. h4 {[%clk 0:01:01.3]} 43... g4 {[%clk 0:00:04.5]} 44. Nd2 {[%clk 0:01:01]}
44... Nc6 {[%clk 0:00:05.1]} 45. Nf1 {[%clk 0:00:58.4]} 45... Nb4+ {[%clk
0:00:04.1]} 46. Kc3 {[%clk 0:00:58.2]} 46... Ke5 {[%clk 0:00:04.4]} 47. Ne3
{[%clk 0:00:57.5]} 47... h5 {[%clk 0:00:04]} 48. g3 {[%clk 0:00:56.5]} 48... f4
{[%clk 0:00:03.8]} 49. Nd1 {[%clk 0:00:54]} 49... fxg3 {[%clk 0:00:04.1]} 50.
fxg3 {[%clk 0:00:53.5]} 50... Ke4 {[%clk 0:00:05]} 51. Nb2 {[%clk 0:00:51.8]}
51... Kf3 {[%clk 0:00:04.8]} 52. Na4 {[%clk 0:00:51.9]} 52... Na6 {[%clk
0:00:05.3]} 53. Kd3 {[%clk 0:00:47.7]} 53... Kxg3 {[%clk 0:00:05.6]} 54. Ke4
{[%clk 0:00:47.7]} 54... Kxh4 {[%clk 0:00:06.2]} 55. Kd5 {[%clk 0:00:46.9]}
55... g3 {[%clk 0:00:05.7]} 56. Nc3 {[%clk 0:00:46.4]} 56... g2 {[%clk
0:00:05.7]} 57. Ne2 {[%clk 0:00:46.4]} 57... Kg4 {[%clk 0:00:05.5]} 58. Ke4
{[%clk 0:00:43.9]} 58... h4 {[%clk 0:00:05.7]} 59. Ke3 {[%clk 0:00:39.1]} 59...
h3 {[%clk 0:00:06.4]} 60. Kf2 {[%clk 0:00:39.4]} 60... Nb4 {[%clk 0:00:06.4]}
61. Kg1 {[%clk 0:00:32.4]} 61... Nd3 {[%clk 0:00:06.3]} 62. Kh2 {[%clk
0:00:32.3]} 62... Nf4 {[%clk 0:00:04.2]} 63. Ng1 {[%clk 0:00:30.4]} 63... Kf5
{[%clk 0:00:04.1]} 64. Kg3 {[%clk 0:00:29.6]} 64... Ke4 {[%clk 0:00:04.1]} 65.
Kh2 {[%clk 0:00:27.3]} 65... Kd4 {[%clk 0:00:04.2]} 66. Kg3 {[%clk 0:00:21.5]}
66... Kxc4 {[%clk 0:00:04.6]} 67. Nf3 {[%clk 0:00:21.6]} 67... Ne2+ {[%clk
0:00:03.5]} 68. Kf2 {[%clk 0:00:20.1]} 68... g1=Q+ {[%clk 0:00:04.4]} 69. Nxg1
{[%clk 0:00:19]} 69... Nxg1 {[%clk 0:00:05.3]} 70. Kxg1 {[%clk 0:00:19.2]} 70...
Kd3 {[%clk 0:00:06.2]} 71. Kh2 {[%clk 0:00:19.7]} 71... Kd2 {[%clk 0:00:07.1]}
72. Kxh3 {[%clk 0:00:20.3]} 72... c4 {[%clk 0:00:08]} 73. Kg4 {[%clk 0:00:20.8]}
73... c3 {[%clk 0:00:08.9]} 74. Kf4 {[%clk 0:00:21.6]} 74... c2 {[%clk
0:00:09.8]} 0-1

[Event "Early-Titled-Tuesday-Blitz-May-07-2024"]
[Site "Chess.com"]
[Date "2024.05.07"]
[Round "2"]
[White "BogdanDeac"]
[Black "Aslanov_Umid"]
[Result "1-0"]
[WhiteElo "3092"]
[BlackElo "2650"]
[TimeControl "180+1"]
[EndTime "8:21:20 PDT"]
[Termination "BogdanDeac won by checkmate"]

1. d4 {[%clk 0:03:00.9]} 1... d5 {[%clk 0:03:00]} 2. Bf4 {[%clk 0:02:57.7]} 2...
Nf6 {[%clk 0:02:59.7]} 3. e3 {[%clk 0:02:55.4]} 3... c5 {[%clk 0:02:58.6]} 4. c3
{[%clk 0:02:55.2]} 4... Nc6 {[%clk 0:02:59]} 5. Nd2 {[%clk 0:02:55.7]} 5... Bf5
{[%clk 0:02:54.4]} 6. Ngf3 {[%clk 0:02:51.4]} 6... e6 {[%clk 0:02:53.8]} 7. Qb3
{[%clk 0:02:51.5]} 7... Qc8 {[%clk 0:02:53.5]} 8. Nh4 {[%clk 0:02:50.8]} 8...
Be4 {[%clk 0:02:48.3]} 9. Nxe4 {[%clk 0:02:47.2]} 9... Nxe4 {[%clk 0:02:49.2]}
10. Nf3 {[%clk 0:02:47.5]} 10... Be7 {[%clk 0:02:44.4]} 11. h3 {[%clk
0:02:37.5]} 11... O-O {[%clk 0:02:44.3]} 12. Qc2 {[%clk 0:02:31.5]} 12... c4
{[%clk 0:02:28.5]} 13. Nd2 {[%clk 0:02:12.2]} 13... Nxd2 {[%clk 0:02:28.8]} 14.
Qxd2 {[%clk 0:02:11.9]} 14... b5 {[%clk 0:02:28.2]} 15. Qc2 {[%clk 0:02:11.9]}
15... b4 {[%clk 0:02:16.9]} 16. Be2 {[%clk 0:02:11.3]} 16... Qd7 {[%clk
0:02:14.2]} 17. O-O {[%clk 0:02:07.3]} 17... Bd6 {[%clk 0:02:14.8]} 18. Bxd6
{[%clk 0:02:03.8]} 18... Qxd6 {[%clk 0:02:15.7]} 19. e4 {[%clk 0:02:03.2]} 19...
Rab8 {[%clk 0:02:15.8]} 20. exd5 {[%clk 0:02:00.2]} 20... exd5 {[%clk
0:02:15.7]} 21. Qa4 {[%clk 0:02:00.8]} 21... a5 {[%clk 0:02:02.2]} 22. Bf3
{[%clk 0:01:59.1]} 22... bxc3 {[%clk 0:01:37.3]} 23. bxc3 {[%clk 0:01:58.2]}
23... Rb2 {[%clk 0:01:37.9]} 24. Rfe1 {[%clk 0:01:49.2]} 24... h6 {[%clk
0:01:23.5]} 25. Re3 {[%clk 0:01:23.5]} 25... Rfb8 {[%clk 0:01:22.5]} 26. Rae1
{[%clk 0:01:22.6]} 26... Kh7 {[%clk 0:00:59.4]} 27. g3 {[%clk 0:00:52.3]} 27...
g6 {[%clk 0:00:58.7]} 28. R3e2 {[%clk 0:00:47.1]} 28... Kg7 {[%clk 0:00:57.7]}
29. Kg2 {[%clk 0:00:45.3]} 29... h5 {[%clk 0:00:47.4]} 30. h4 {[%clk 0:00:44.8]}
30... Rb1 {[%clk 0:00:46.2]} 31. Qc2 {[%clk 0:00:30]} 31... R8b2 {[%clk
0:00:31.2]} 32. Qxb1 {[%clk 0:00:21.8]} 32... Rxb1 {[%clk 0:00:31.1]} 33. Rxb1
{[%clk 0:00:22.4]} 33... Qa3 {[%clk 0:00:24.6]} 34. Bxd5 {[%clk 0:00:17.3]}
34... Ne7 {[%clk 0:00:25]} 35. Bf3 {[%clk 0:00:13.4]} 35... Nf5 {[%clk
0:00:24.2]} 36. Rc2 {[%clk 0:00:12.4]} 36... Qa4 {[%clk 0:00:23.3]} 37. Rbb2
{[%clk 0:00:11.3]} 37... Nd6 {[%clk 0:00:21.7]} 38. Re2 {[%clk 0:00:09]} 38...
Qd7 {[%clk 0:00:19.4]} 39. d5 {[%clk 0:00:08.8]} 39... Nb5 {[%clk 0:00:17]} 40.
Rbc2 {[%clk 0:00:08.2]} 40... Nc7 {[%clk 0:00:15.3]} 41. Red2 {[%clk 0:00:07.2]}
41... Qd6 {[%clk 0:00:15.8]} 42. Rd4 {[%clk 0:00:06.9]} 42... Kf6 {[%clk
0:00:11]} 43. Rxc4 {[%clk 0:00:06.8]} 43... Nxd5 {[%clk 0:00:11.6]} 44. Rd4
{[%clk 0:00:06.9]} 44... Qa3 {[%clk 0:00:07.1]} 45. Rxd5 {[%clk 0:00:06.9]}
45... Kg7 {[%clk 0:00:08]} 46. Rdd2 {[%clk 0:00:06.8]} 46... Qa4 {[%clk
0:00:08.5]} 47. c4 {[%clk 0:00:07.3]} 47... Qe8 {[%clk 0:00:07.7]} 48. c5 {[%clk
0:00:07.6]} 48... Qe1 {[%clk 0:00:06.6]} 49. c6 {[%clk 0:00:07.8]} 49... g5
{[%clk 0:00:07.3]} 50. Rd4 {[%clk 0:00:07.1]} 50... g4 {[%clk 0:00:07.6]} 51.
Bd5 {[%clk 0:00:07.3]} 51... Qe5 {[%clk 0:00:06.9]} 52. Rd3 {[%clk 0:00:07.1]}
52... Qc7 {[%clk 0:00:06.5]} 53. Rcc3 {[%clk 0:00:07.3]} 53... Kf6 {[%clk
0:00:06.4]} 54. Rc4 {[%clk 0:00:07.6]} 54... Kg6 {[%clk 0:00:06.6]} 55. Rf4
{[%clk 0:00:07.9]} 55... f5 {[%clk 0:00:07]} 56. Rc4 {[%clk 0:00:07.9]} 56...
Kf6 {[%clk 0:00:07.4]} 57. Rf4 {[%clk 0:00:08]} 57... Qd6 {[%clk 0:00:06.9]} 58.
Rd2 {[%clk 0:00:08]} 58... Qc5 {[%clk 0:00:06.8]} 59. Be4 {[%clk 0:00:07.7]}
59... Qc3 {[%clk 0:00:03.9]} 60. Rxf5+ {[%clk 0:00:07.7]} 60... Ke6 {[%clk
0:00:04.6]} 61. Rdd5 {[%clk 0:00:07.6]} 61... Qc4 {[%clk 0:00:04.6]} 62. Rde5+
{[%clk 0:00:07.6]} 62... Kd6 {[%clk 0:00:04.9]} 63. Rd5+ {[%clk 0:00:07.6]}
63... Ke6 {[%clk 0:00:05.2]} 64. Rfe5+ {[%clk 0:00:08.3]} 64... Kf6 {[%clk
0:00:05.6]} 65. Re8 {[%clk 0:00:08.2]} 65... Kg7 {[%clk 0:00:02.9]} 66. Rg5+
{[%clk 0:00:08.1]} 66... Kh6 {[%clk 0:00:03.2]} 67. Ree5 {[%clk 0:00:08.2]}
67... a4 {[%clk 0:00:02.3]} 68. Rg6+ {[%clk 0:00:08.5]} 68... Kh7 {[%clk
0:00:02.8]} 69. Rxh5# {[%clk 0:00:08.5]} 1-0